fUST/lending_fUST_20251023
["ID","MTS","AMOUNT","RATE_DAILY","PERIOD"]
[392106469,1761163841422,-13950.69,0.000288,7]
[392106471,1761163841431,-760.0,0.00028851,2]
[392106473,1761163841440,-500.0,0.00028856,2]
[392106475,1761163841450,-597.77637791,0.00028856,5]
[392106477,1761163841459,-500.0,0.00028856,5]
[392106479,1761163841469,-500.0,0.00028856,5]
[392106481,1761163841478,-500.0,0.00028856,5]
[392106483,1761163841488,-500.0,0.00028856,5]
[392106485,1761163841500,-500.0,0.00028856,5]
[392106487,1761163841509,-500.0,0.00028856,5]
[392106489,1761163841519,-502.14047218,0.00028856,5]
[392106491,1761163841528,-500.0,0.00028856,5]
[392106493,1761163841537,-500.58622512,0.00028856,5]
[392106495,1761163841547,-500.0,0.00028856,5]
[392106498,1761163841558,-502.53122103,0.00028856,5]
[392106500,1761163841568,-3500.0,0.0002886,5]
[392106502,1761163841577,-3500.0,0.0002886,5]
[392106504,1761163841586,-2500.0,0.0002886,5]
[392106506,1761163841596,-2351.0,0.00028995,2]
[392106508,1761163841605,-500.99787454,0.00029014,2]
[392106510,1761163841614,-199.0,0.00029041,12]
[392106512,1761163841623,-177.87051647,0.00029085,21]
[392106514,1761163841632,-250.298,0.00029085,21]
[392106516,1761163841643,-500.0,0.000291,5]
[392106518,1761163841652,-500.0,0.000291,5]
[392106520,1761163841662,-508.33463292,0.000291,5]
[392106522,1761163841672,-502.66916721,0.000291,5]
[392106524,1761163841681,-500.0,0.000291,5]
[392106526,1761163841691,-212.61274819,0.000291,5]
[392106528,1761163841700,-151.0,0.00029185,30]
[392106530,1761163841709,-151.0,0.00029185,30]
[392106532,1761163841718,-191.91544,0.00029185,30]
[392106533,1761163841727,-191.91544,0.00029185,30]
[392106535,1761163841737,-191.91544,0.00029185,30]
[392106538,1761163841746,-191.91544,0.00029185,30]
[392106540,1761163841755,-505.59155942,0.0002929,5]
[392106541,1761163841764,-500.0,0.0002929,5]
[392106544,1761163841774,-500.0,0.0002929,5]
[392106546,1761163841783,-500.0,0.0002929,5]
[392106547,1761163841792,-158.52362636,0.0002929,5]
[392106549,1761163841801,-158.12521565,0.0002929,2]
[392106552,1761163841811,-199.0,0.00029315,13]
[392106553,1761163841820,-860.0,0.00029399,2]
[392106556,1761163841829,-1001.21083915,0.00029404,2]
[392106558,1761163841838,-1000.0,0.00029404,5]
[392106559,1761163841847,-183.27816794,0.00029404,5]
[392106561,1761163841856,-614.53254891,0.00029404,5]
[392106563,1761163841866,-1000.0,0.00029404,5]
[392106566,1761163841876,-1002.70253193,0.00029404,5]
[392106567,1761163841884,-1000.0,0.00029404,5]
[392106569,1761163841893,-1000.0,0.00029404,5]
[392106571,1761163841903,-3531.31822136,0.00029408,5]
[392106573,1761163841912,-887.71567513,0.00029408,5]
[392106574,1761163841922,-199.0,0.00029589,14]
[392106576,1761163841931,-403.14601822,0.00029591,2]
[392106578,1761163841943,-880.0430271,0.00029648,5]
[392106580,1761163841952,-1000.0,0.00029648,5]
[392106582,1761163841960,-151.0,0.00029648,2]
[392106584,1761163841970,-151.0,0.00029648,2]
[392106586,1761163841979,-151.0,0.00029648,2]
[392106588,1761163841988,-151.0,0.00029648,30]
[392106590,1761163841997,-1020.613484,0.00029652,2]
[392106591,1761163842006,-428.108412,0.00029652,2]
[392106593,1761163842015,-161.586398,0.00029652,2]
[392106595,1761163842024,-168.0,0.00029685,2]
[392106597,1761163842033,-1000.0,0.00029838,5]
[392106599,1761163842042,-1000.0,0.00029838,5]
[392106601,1761163842051,-418.19602831,0.00029838,5]
[392106603,1761163842060,-151.0,0.00029838,30]
[392106605,1761163842069,-151.0,0.00029838,30]
[392106607,1761163842079,-151.0,0.00029838,30]
[392106609,1761163842087,-199.0,0.00029863,15]
[392106611,1761163842097,-168.0,0.00029904,2]
[392106613,1761163842107,-960.0,0.00029947,2]
[392106615,1761163842116,-1500.0,0.00029951,5]
[392106617,1761163842125,-511.33957118,0.00029951,5]
[392106619,1761163842138,-1500.0,0.00029951,5]
[392106621,1761163842148,-270.76090602,0.00029951,5]
[392106623,1761163842157,-1358.33,0.0003,7]
[392106625,1761163842166,-1020.613484,0.0003,15]
[392106627,1761163842175,-428.108412,0.0003,15]
[392106629,1761163842185,-2691.25,0.000301,2]
[392106631,1761163842194,-199.0,0.00030136,16]
[392106632,1761163842203,-168.0,0.00030168,2]
[392106634,1761163842214,-168.0,0.00030178,2]
[392106636,1761163842224,-168.0,0.00030185,2]
[392106638,1761163842233,-428.12470712,0.00030196,5]
[392106640,1761163842243,-168.0,0.00030252,2]
[392106642,1761163842251,-168.0,0.00030271,2]
[392106644,1761163842260,-570.1694063,0.00030277,2]
[392106646,1761163842269,-1500.0,0.00030386,5]
[392106648,1761163842280,-503.10569259,0.00030386,5]
[392106650,1761163842289,-199.0,0.0003041,17]
[392106652,1761163842298,-168.0,0.00030428,2]
[392106654,1761163842308,-168.0,0.00030466,2]
[392106656,1761163842317,-1060.0,0.00030495,2]
[392106658,1761163842326,-2000.0,0.00030499,5]
[392106660,1761163842335,-2000.0,0.00030499,5]
[392106662,1761163842344,-168.0,0.00030511,2]
[392106664,1761163842354,-151.0,0.000306,17]
[392106666,1761163842362,-168.0,0.00030646,2]
[392106668,1761163842372,-199.0,0.00030684,18]
[392106670,1761163842383,-169.0,0.00030685,41]
[392106672,1761163842392,-512.4240118,0.00030934,5]
[392106674,1761163842402,-252.56,0.00030958,19]
[392106676,1761163842411,-1001.92,0.00031,2]
[392106678,1761163842420,-168.0,0.00031034,2]
[392106680,1761163842430,-1160.0,0.00031043,2]
[392106682,1761163842439,-2500.0,0.00031047,5]
[392106683,1761163842448,-823.0,0.00031145,2]
[392106685,1761163842458,-1001.92,0.00031174,2]
[392106687,1761163842467,-168.0,0.00031211,2]
[392106690,1761163842478,-714.14760537,0.00031214,2]
[392106692,1761163842488,-168.0,0.00031411,2]
[392106694,1761163842497,-3292.0,0.00031572,3]
[392106695,1761163842508,-477.97539759,0.00031591,2]
[392106697,1761163842517,-3000.0,0.00031595,5]
[392106699,1761163842527,-864.0,0.00031598,30]
[392106702,1761163842537,-632.0,0.00031637,2]
[392106703,1761163842546,-983.0,0.00031637,2]
[392106705,1761163842555,-2164.0,0.00031637,2]
[392106708,1761163842565,-411.0,0.00031637,2]
[392106710,1761163842575,-8191.90042364,0.00031825,2]
[392106712,1761163842584,-168.0,0.00031954,2]
[392106714,1761163842593,-250.0,0.00031999,2]
[392106716,1761163842603,-13950.69,0.000321,7]
[392106718,1761163842612,-1761.14003,0.00032143,5]
[392106720,1761163842621,-636.81258366,0.00032277,2]
[392106721,1761163842630,-168.0,0.00032285,2]
[392106724,1761163842641,-168.0,0.00032407,2]
[392106726,1761163842650,-313.59,0.000327,8]
[392106728,1761163842660,-152.06,0.00032735,15]
[392106730,1761163842669,-152.06,0.00032835,15]
[392106732,1761163842680,-3457.59,0.00032876,120]
[392106734,1761163842689,-152.06,0.00032935,60]
[392106735,1761163842698,-208.9062212,0.0003302,2]
[392106737,1761163842707,-229.4832423,0.0003302,2]
[392106740,1761163842717,-319.1166249,0.0003302,2]
[392106742,1761163842726,-197.3916355,0.0003302,2]
[392106744,1761163842735,-152.06,0.00033035,60]
[392106746,1761163842744,-2691.25,0.000331,14]
[392106748,1761163842755,-1358.33,0.000331,7]
[392106749,1761163842764,-152.08,0.00033135,60]
[392106751,1761163842773,-234.39041121,0.00033152,2]
[392106753,1761163842782,-421.90274018,0.00033152,2]
[392106755,1761163842792,-750.04931588,0.00033152,2]
[392106757,1761163842801,-548.55559448,0.00033152,2]
[392106759,1761163842811,-987.40007007,0.00033152,2]
[392106762,1761163842820,-1755.37790235,0.00033152,2]
[392106764,1761163842829,-3457.59,0.00033698,120]
[392106766,1761163842838,-1152.0,0.00033759,2]
[392106768,1761163842847,-151.0,0.0003376,7]
[392106770,1761163842857,-1483.5396073,0.00034015,3]
[392106772,1761163842867,-621.32875975,0.00034015,3]
[392106773,1761163842877,-1857.86404624,0.00034147,2]
[392106775,1761163842886,-703.45576102,0.00034277,120]
[392106777,1761163842896,-2786.0,0.00034378,3]
[392106779,1761163842905,-714.14760537,0.00034451,2]
[392106781,1761163842914,-3457.59,0.0003452,120]
[392106783,1761163842923,-632.0,0.00034637,2]
[392106785,1761163842933,-983.0,0.00034637,2]
[392106787,1761163842943,-2164.0,0.00034637,2]
[392106789,1761163842954,-411.0,0.00034637,2]
[392106791,1761163842963,-1020.613484,0.0003475,15]
[392106793,1761163842972,-428.108412,0.0003475,15]
[392106795,1761163842981,-1000.0,0.00034758,30]
[392106797,1761163842991,-152.29,0.00034862,2]
[392106800,1761163843001,-359.47533648,0.00034939,13]
[392106802,1761163843010,-502.51300571,0.000352,13]
[392106804,1761163843021,-500.0,0.000352,13]
[392106806,1761163843030,-13950.69,0.000352,14]
[392106808,1761163843039,-152.04,0.00035209,60]
[392106810,1761163843048,-152.17,0.00035209,60]
[392106813,1761163843058,-152.04,0.00035309,60]
[392106814,1761163843067,-3457.59,0.00035342,120]
[392106817,1761163843077,-2107.69,0.000354,30]
[392106818,1761163843087,-300.0,0.000354,13]
[392106820,1761163843096,-300.0,0.000354,13]
[392106823,1761163843105,-300.0,0.000354,13]
[392106824,1761163843115,-300.0,0.000354,13]
[392106826,1761163843125,-300.0,0.000354,13]
[392106828,1761163843139,-300.0,0.000354,13]
[392106830,1761163843148,-300.0,0.000354,13]
[392106833,1761163843158,-218.64,0.000354,13]
[392106834,1761163843167,-152.04,0.00035409,60]
[392106836,1761163843176,-1065.89137556,0.00035447,5]
[392106838,1761163843185,-333.0,0.00035461,30]
[392106840,1761163843195,-391.913,0.00035469,30]
[392106842,1761163843204,-151.0,0.00035469,7]
[392106844,1761163843214,-151.0,0.00035469,2]
[392106846,1761163843223,-151.0,0.00035469,2]
[392106848,1761163843232,-151.0,0.00035469,30]
[392106850,1761163843242,-151.0,0.00035469,30]
[392106852,1761163843251,-151.0,0.00035469,30]
[392106853,1761163843260,-191.91544,0.00035469,30]
[392106854,1761163843269,-191.91544,0.00035469,30]
[392106855,1761163843279,-191.91544,0.00035469,30]
[392106856,1761163843288,-191.91544,0.00035469,30]
[392106857,1761163843297,-228.384325,0.00035469,30]
[392106858,1761163843307,-151.0,0.00035469,30]
[392106859,1761163843316,-209.37164,0.00035469,30]
[392106860,1761163843325,-252484.32134085,0.00035469,20]
[392106862,1761163843335,-1009.999999,0.00035469,2]
[392106864,1761163843345,-250.0,0.00035469,10]
[392106866,1761163843354,-250.0,0.00035469,10]
[392106868,1761163843364,-250.0,0.00035469,10]
[392106869,1761163843373,-250.0,0.00035469,10]
[392106870,1761163843382,-250.738656,0.00035469,10]
[392106871,1761163843392,-300.0,0.00035473,5]
[392106873,1761163843402,-1475.0,0.00035477,30]
[392106875,1761163843411,-1358.33,0.000355,7]
[392106877,1761163843420,-251.503616,0.000355,10]
[392106879,1761163843430,-152.04,0.00035509,60]
[392106890,1761163843440,-1020.613484,0.000356,60]
[392106893,1761163843531,-428.108412,0.000356,60]
[392106895,1761163843541,-152.0968899,0.00035609,60]
[392106896,1761163843550,-313.59,0.000357,14]
[392106898,1761163843559,-6906.0,0.00035858,2]
[392106900,1761163843570,-250.0,0.00036021,5]
[392106902,1761163843579,-2691.25,0.000361,14]
[392106904,1761163843588,-3457.59,0.00036164,120]
[392106905,1761163843598,-155.0,0.00036164,85]
[392106907,1761163843607,-203.47398103,0.0003621,2]
[392106910,1761163843617,-264.66288695,0.0003624,2]
[392106911,1761163843626,-770.09893838,0.00036277,120]
[392106913,1761163843635,-490.523263,0.00036363,2]
[392106914,1761163843644,-2180.6962155,0.00036469,30]
[392106916,1761163843654,-350.0,0.00036568,5]
[392106918,1761163843663,-1613.0,0.00036592,2]
[392106920,1761163843672,-171.33,0.00036799,2]
[392106922,1761163843681,-1000.0,0.00036887,15]
[392106923,1761163843691,-643.3936015,0.00036889,2]
[392106924,1761163843700,-319.1166249,0.00036898,2]
[392106925,1761163843709,-208.9062212,0.00036898,2]
[392106926,1761163843718,-3457.59,0.00036986,120]
[392106927,1761163843727,-643.3936015,0.00037,120]
[392106928,1761163843736,-1020.613484,0.00037037,60]
[392106929,1761163843747,-428.108412,0.00037037,60]
[392106930,1761163843757,-450.0,0.00037116,5]
[392106931,1761163843766,-160.0,0.00037217,3]
[392106932,1761163843776,-13950.69,0.000374,14]
[392106933,1761163843785,-5000.0,0.00037449,4]
[392106934,1761163843794,-632.0,0.00037637,2]
[392106935,1761163843803,-983.0,0.00037637,2]
[392106936,1761163843813,-2164.0,0.00037637,2]
[392106937,1761163843822,-411.0,0.00037637,2]
[392106938,1761163843831,-435.92436597,0.00037664,5]
[392106939,1761163843841,-714.14760537,0.00037688,2]
[392106940,1761163843850,-1358.33,0.000377,7]
[392106941,1761163843859,-1014.79278425,0.000378,2]
[392106942,1761163843868,-3457.59,0.00037808,120]
[392106943,1761163843878,-500.0,0.00037885,30]
[392106944,1761163843887,-183.031517,0.00037916,60]
[392106945,1761163843896,-201.0,0.0003809,48]
[392106946,1761163843905,-2691.25,0.000381,14]
[392106947,1761163843914,-1000.0,0.00038234,30]
[392106948,1761163843923,-244.0,0.00038234,30]
[392106949,1761163843933,-8191.90042364,0.00038256,2]
[392106950,1761163843944,-9170.88985555,0.00038256,2]
[392106951,1761163843961,-1080.31288565,0.00038256,2]
[392106952,1761163843971,-836.74211574,0.00038277,120]
[392106953,1761163843980,-300.0,0.000383,12]
[392106954,1761163843989,-300.0,0.000383,12]
[392106955,1761163843999,-300.0,0.000383,12]
[392106956,1761163844008,-300.0,0.000383,12]
[392106957,1761163844017,-300.0,0.000383,12]
[392106958,1761163844027,-300.0,0.000383,12]
[392106959,1761163844036,-300.0,0.000383,12]
[392106960,1761163844045,-300.0,0.000383,12]
[392106961,1761163844055,-300.0,0.000383,12]
[392106962,1761163844063,-226.24860861,0.00038356,7]
[392106963,1761163844071,-375.71813837,0.00038356,7]
[392106964,1761163844078,-264.60020294,0.00038356,7]
[392106965,1761163844087,-580.53653119,0.00038356,7]
[392106966,1761163844095,-500.0,0.00038356,7]
[392106967,1761163844104,-216.010652,0.00038356,7]
[392106968,1761163844113,-637.01184734,0.00038356,7]
[392106969,1761163844122,-389.55112032,0.00038356,7]
[392106970,1761163844132,-404.29224935,0.00038356,7]
[392106971,1761163844145,-204.76256233,0.00038356,7]
[392106972,1761163844154,-413.59874406,0.00038356,7]
[392106973,1761163844163,-500.0,0.00038356,7]
[392106974,1761163844173,-169.42139911,0.00038356,7]
[392106975,1761163844183,-500.0,0.00038356,7]
[392106976,1761163844195,-3243.37,0.00038356,2]
[392106977,1761163844206,-327.20495866,0.00038356,7]
[392106978,1761163844215,-246.9595473,0.00038356,7]
[392106979,1761163844225,-376.87004562,0.00038356,7]
[392106980,1761163844234,-239.1904693,0.00038356,7]
[392106981,1761163844243,-500.0,0.00038356,7]
[392106982,1761163844253,-218.07656946,0.00038356,7]
[392106983,1761163844262,-220.96140396,0.00038356,7]
[392106984,1761163844271,-411.27803186,0.00038356,7]
[392106985,1761163844280,-438.172577,0.00038356,7]
[392106986,1761163844289,-188.20051469,0.00038356,7]
[392106987,1761163844301,-435.58932894,0.00038356,7]
[392106988,1761163844311,-500.0,0.00038356,7]
[392106989,1761163844321,-743.05,0.00038356,7]
[392106990,1761163844330,-72.2694966,0.00038356,7]
[392106991,1761163844571,-205.83530187,0.00024639,2]
[392106992,1761163844581,-354.1656796,0.00038356,7]
[392106993,1761163844590,-435.83543515,0.00038356,7]
[392106994,1761163844599,-422.00755294,0.00038356,7]
[392106995,1761163844609,-391.97531565,0.00038356,7]
[392106996,1761163844620,-4166.66,0.00038356,7]
[392106997,1761163844630,-381.85568789,0.00038356,7]
[392106998,1761163844639,-500.0,0.00038356,7]
[392106999,1761163844649,-263.92935556,0.00038356,7]
[392107000,1761163844660,-164.55359768,0.00038356,7]
[392107001,1761163844669,-548.61315842,0.00038356,7]
[392107002,1761163844681,-59.06684158,0.00038356,7]
[392107003,1761163844692,-150.63750865,0.00038356,7]
[392107004,1761163844702,-240.29564977,0.00038356,7]
[392107005,1761163844772,-18.42580905,0.00038356,7]
[392107006,1761163844782,-339.5087257,0.00038356,7]
[392107007,1761163844791,-252.10695275,0.00038356,7]
[392107008,1761163844801,-270.20670006,0.00038356,7]
[392107009,1761163844811,-443.34804789,0.00038356,7]
[392107010,1761163844821,-279.98327975,0.00038356,7]
[392107011,1761163844831,-361.77469277,0.00038356,7]
[392107012,1761163844841,-230.11669308,0.00038356,7]
[392107013,1761163844851,-563.93859614,0.00038356,7]
[392107014,1761163844861,-228.03333693,0.00038356,7]
[392107015,1761163844871,-500.0,0.00038356,7]
[392107016,1761163844881,-500.0,0.00038356,7]
[392107017,1761163844891,-398.28436685,0.00038356,7]
[392107018,1761163844901,-200.19375026,0.00038356,7]
[392107019,1761163844911,-450.04226646,0.00038356,7]
[392107020,1761163844921,-525.19208295,0.00038356,7]
[392107021,1761163844930,-336.68656245,0.00038356,7]
[392107022,1761163844941,-310.89209667,0.00038356,7]
[392107023,1761163844952,-169.12964423,0.00038356,7]
[392107024,1761163844962,-356.01494777,0.00038356,7]
[392107025,1761163844971,-500.0,0.00038356,7]
[392107026,1761163844981,-199.52534277,0.00038356,7]
[392107027,1761163844992,-334.79924119,0.00038356,7]
[392107028,1761163845001,-578.66409647,0.00038356,7]
[392107029,1761163845010,-347.38797321,0.00038356,7]
[392107030,1761163845020,-285.84973559,0.00038356,7]
[392107031,1761163845029,-229.8743254,0.00038356,7]
[392107032,1761163845039,-357.75164544,0.00038356,7]
[392107033,1761163845049,-209.98297603,0.00038356,7]
[392107034,1761163845059,-164.2643105,0.00038356,7]
[392107035,1761163845068,-553.31947537,0.00038356,7]
[392107036,1761163845077,-224.74968221,0.00038356,7]
[392107037,1761163845087,-500.0,0.00038356,7]
[392107038,1761163845096,-401.43468633,0.00038356,7]
[392107039,1761163845106,-222.53999091,0.00038356,7]
[392107040,1761163845115,-235.12868779,0.00038356,7]
[392107041,1761163845125,-305.6750953,0.00038356,7]
[392107042,1761163845137,-500.0,0.00038356,7]
[392107043,1761163845148,-255.73843306,0.00038356,7]
[392107044,1761163845158,-491.7243919,0.00038356,7]
[392107045,1761163845168,-414.60225012,0.00038356,7]
[392107046,1761163845179,-345.70979898,0.00038356,7]
[392107047,1761163845190,-500.0,0.00038356,7]
[392107048,1761163845199,-475.46829562,0.00038356,7]
[392107049,1761163845212,-1589.79170438,0.00038356,7]
[392107050,1761163845224,-310.31807726,0.00038356,7]
[392107051,1761163845235,-500.0,0.00038356,7]
[392107052,1761163845244,-374.38007452,0.00038356,7]
[392107053,1761163845254,-192.48645907,0.00038356,7]
[392107054,1761163845263,-326.35246607,0.00038356,7]
[392107055,1761163845273,-500.0,0.00038356,7]
[392107056,1761163845283,-343.85267406,0.00038356,7]
[392107057,1761163845293,-500.0,0.00038356,7]
[392107058,1761163845302,-261.15607341,0.00038356,7]
[392107059,1761163845312,-285.8611888,0.00038356,7]
[392107060,1761163845322,-500.0,0.00038356,7]
[392107061,1761163845331,-500.0,0.00038356,7]
[392107062,1761163845340,-376.86376356,0.00038356,7]
[392107063,1761163845353,-500.0,0.00038356,7]
[392107064,1761163845363,-528.16277677,0.00038356,7]
[392107065,1761163845372,-495.90907792,0.00038356,7]
[392107066,1761163845382,-500.0,0.00038356,7]
[392107067,1761163845391,-353.4328264,0.00038356,7]
[392107068,1761163845401,-161.19190456,0.00038356,7]
[392107069,1761163845410,-500.0,0.00038356,7]
[392107070,1761163845421,-237.38378243,0.00038356,7]
[392107071,1761163845431,-500.0,0.00038356,7]
[392107072,1761163845441,-188.13134303,0.00038356,7]
[392107073,1761163845451,-355.85537143,0.00038356,7]
[392107074,1761163845540,-383.4321509,0.00038356,7]
[392107075,1761163845551,-500.0,0.00038356,7]
[392107076,1761163845560,-582.97511762,0.00038356,7]
[392107077,1761163845570,-182.21645852,0.00038356,7]
[392107078,1761163845579,-204.85090527,0.00038356,7]
[392107079,1761163845588,-310.56029153,0.00038356,7]
[392107080,1761163845599,-500.0,0.00038356,7]
[392107081,1761163845609,-281.40735665,0.00038356,7]
[392107082,1761163845619,-427.45011105,0.00038356,7]
[392107083,1761163845631,-383.9352096,0.00038356,7]
[392107084,1761163845640,-396.27058211,0.00038356,7]
[392107085,1761163845649,-500.0,0.00038356,7]
[392107086,1761163845659,-443.7208532,0.00038356,7]
[392107087,1761163845669,-500.0,0.00038356,7]
[392107088,1761163845679,-152.86857846,0.00038356,7]
[392107089,1761163845688,-208.35979215,0.00038356,7]
[392107090,1761163845699,-500.0,0.00038356,7]
[392107091,1761163845708,-387.37913801,0.00038356,7]
[392107092,1761163845717,-381.48414187,0.00038356,7]
[392107093,1761163845728,-500.0,0.00038356,2]
[392107094,1761163845740,-195.20001391,0.00038356,7]
[392107095,1761163845750,-500.0,0.00038356,7]
[392107096,1761163845760,-281.64495271,0.00038356,7]
[392107097,1761163845769,-177.44813654,0.00038356,7]
[392107098,1761163845779,-381.271218,0.00038356,7]
[392107099,1761163845789,-476.64485801,0.00038356,7]
[392107101,1761163845798,-263.51592051,0.00038356,7]
[392107103,1761163845807,-204.53086713,0.00038356,7]
[392107104,1761163845817,-488.54664983,0.00038356,7]
[392107105,1761163845826,-233.39601973,0.00038356,7]
[392107106,1761163845836,-222.51023298,0.00038356,7]
[392107107,1761163845845,-275.97635961,0.00038356,7]
[392107108,1761163845854,-391.5357291,0.00038356,7]
[392107109,1761163845863,-505.26522106,0.00038356,7]
[392107110,1761163845872,-471.04441665,0.00038356,7]
[392107111,1761163845882,-500.0,0.00038356,7]
[392107112,1761163845891,-465.2051283,0.00038356,7]
[392107113,1761163845902,-500.0,0.00038356,7]
[392107114,1761163845912,-280.51710492,0.00038356,7]
[392107115,1761163845921,-218.47679941,0.00038356,7]
[392107116,1761163845931,-500.0,0.00038356,7]
[392107117,1761163845941,-383.26188039,0.00038356,7]
[392107118,1761163845951,-360.92931251,0.00038356,7]
[392107119,1761163845960,-500.0,0.00038356,7]
[392107120,1761163845969,-397.63327559,0.00038356,7]
[392107121,1761163845979,-383.41896121,0.00038356,7]
[392107122,1761163845989,-468.15890753,0.00038356,7]
[392107123,1761163845999,-500.0,0.00038356,7]
[392107124,1761163846010,-322.29987435,0.00038356,7]
[392107125,1761163846019,-389.90767542,0.00038356,7]
[392107126,1761163846030,-420.94893177,0.00038356,7]
[392107127,1761163846039,-456.58174949,0.00038356,7]
[392107128,1761163846048,-380.85331625,0.00038356,7]
[392107129,1761163846058,-1000.0,0.00038356,5]
[392107130,1761163846067,-267.48724999,0.00038356,7]
[392107131,1761163846076,-378.22950591,0.00038356,7]
[392107132,1761163846085,-283.42079311,0.00038356,7]
[392107133,1761163846095,-500.0,0.00038356,7]
[392107135,1761163846104,-500.0,0.00038356,7]
[392107136,1761163846113,-339.12217062,0.00038356,7]
[392107137,1761163846122,-500.0,0.00038356,7]
[392107138,1761163846131,-246.29275562,0.00038356,7]
[392107140,1761163846145,-361.08894123,0.00038356,7]
[392107142,1761163846154,-460.62514168,0.00038356,7]
[392107143,1761163846163,-500.0,0.00038356,7]
[392107144,1761163846174,-308.25512341,0.00038356,7]
[392107145,1761163846183,-509.52395148,0.00038356,7]
[392107146,1761163846193,-491.14265081,0.00038356,7]
[392107148,1761163846203,-500.0,0.00038356,7]
[392107150,1761163846213,-198.23182065,0.00038356,7]
[392107152,1761163846221,-151.0,0.00038356,7]
[392107154,1761163846230,-410.249458,0.00038356,7]
[392107156,1761163846239,-346.47400831,0.00038356,7]
[392107158,1761163846248,-160.39539873,0.00038356,7]
[392107160,1761163846256,-173.08691186,0.00038356,7]
[392107162,1761163846266,-173.48982923,0.00038356,7]
[392107164,1761163846275,-242.26528224,0.00038356,7]
[392107165,1761163846284,-463.53758527,0.00038356,7]
[392107166,1761163846293,-397.51300505,0.00038356,7]
[392107167,1761163846303,-279.51456703,0.00038356,7]
[392107168,1761163846312,-217.49797586,0.00038356,7]
[392107169,1761163846322,-386.5340649,0.00038356,7]
[392107170,1761163846332,-374.46127483,0.00038356,7]
[392107171,1761163846342,-500.0,0.00038356,7]
[392107172,1761163846351,-284.04034375,0.00038356,7]
[392107173,1761163846361,-183.70728979,0.00038356,7]
[392107174,1761163846370,-608.39,0.00038356,7]
[392107176,1761163846379,-448.52371845,0.00038356,7]
[392107177,1761163846388,-222.06809218,0.00038356,7]
[392107178,1761163846398,-501.98302975,0.00038356,7]
[392107179,1761163846407,-281.42143024,0.00038356,7]
[392107180,1761163846416,-310.67247293,0.00038356,7]
[392107181,1761163846425,-305.65718132,0.00038356,7]
[392107183,1761163846435,-413.55938269,0.00038356,7]
[392107184,1761163846444,-632.68,0.00038356,7]
[392107185,1761163846454,-328.77167624,0.00038356,7]
[392107186,1761163846463,-500.0,0.00038356,7]
[392107187,1761163846472,-486.23647,0.00038356,7]
[392107188,1761163846481,-432.14089483,0.00038356,7]
[392107189,1761163846491,-415.57821034,0.00038356,7]
[392107190,1761163846500,-500.0,0.00038356,7]
[392107191,1761163846509,-163.76180905,0.00038356,7]
[392107192,1761163846518,-500.0,0.00038356,7]
[392107193,1761163846527,-378.36753295,0.00038356,7]
[392107194,1761163846536,-375.9286683,0.00038356,7]
[392107195,1761163846546,-517.08746334,0.00038356,7]
[392107196,1761163846555,-262.79107785,0.00038356,7]
[392107197,1761163846564,-397.20147701,0.00038356,7]
[392107198,1761163846573,-1419.49,0.00038356,7]
[392107199,1761163846582,-263.52534954,0.00038356,7]
[392107200,1761163846591,-500.0,0.00038356,7]
[392107201,1761163846600,-385.92509597,0.00038356,7]
[392107202,1761163846610,-367.61855805,0.00038356,7]
[392107203,1761163846619,-392.15086227,0.00038356,7]
[392107204,1761163846629,-172.59171225,0.00038356,7]
[392107205,1761163846641,-480.39252546,0.00038356,7]
[392107206,1761163846650,-1834.92966429,0.00038356,7]
[392107207,1761163846999,-288.74,0.00030489,10]